lending/lending_fUSD_20250131
["ID","MTS","AMOUNT","RATE_DAILY","PERIOD"]
[351102409,1738337444167,-1700.09,0.00016438,2]
[351102410,1738337444176,-500.0,0.00016438,2]
[351102411,1738337444185,-4068.77,0.00016438,2]
[351102412,1738337444195,-500.0,0.00016438,2]
[351102413,1738337444204,-1579.74,0.00016438,2]
[351102414,1738337444214,-500.0,0.00016438,2]
[351102415,1738337444223,-1241.33,0.00016438,2]
[351102416,1738337444233,-638.85,0.00016438,2]
[351102417,1738337444242,-629.72,0.00016438,2]
[351102418,1738337444251,-500.0,0.00016438,2]
[351102419,1738337444260,-500.0,0.00016438,2]
[351102420,1738337444269,-1016.29,0.00016438,2]
[351102421,1738337444278,-1647.94,0.00016438,2]
[351102422,1738337444287,-1248.22,0.00016438,2]
[351102423,1738337444299,-500.0,0.00016438,2]
[351102424,1738337444308,-500.0,0.00016438,2]
[351102425,1738337444318,-500.0,0.00016438,2]
[351102426,1738337444327,-3049.39,0.00016438,2]
[351102427,1738337444336,-1373.52,0.00016438,2]
[351102428,1738337444345,-500.0,0.00016438,2]
[351102429,1738337444354,-587.89382099,0.00016438,2]
[351102430,1738337444363,-500.0,0.00016438,2]
[351102431,1738337444372,-500.0,0.00016438,2]
[351102432,1738337444381,-899.27,0.00016438,2]
[351102433,1738337444390,-500.0,0.00016438,2]
[351102434,1738337444399,-1751.72,0.00016438,2]
[351102435,1738337444408,-2136.87,0.00016438,2]
[351102436,1738337444417,-1864.25,0.00016438,2]
[351102437,1738337444426,-517.07,0.00016438,2]
[351102438,1738337444435,-869.69,0.00016438,2]
[351102439,1738337444445,-520.5434157,0.00016438,2]
[351102440,1738337444454,-184.33651632,0.00016438,2]
[351102441,1738337444463,-15042.3595,0.00016475,2]
[351102442,1738337444472,-7365.9197,0.00016475,2]
[351102443,1738337444481,-150.0,0.00016498,2]
[351102444,1738337444489,-27234.01410773,0.00016498,2]
[351102445,1738337444499,-637.0,0.00016567,2]
[351102446,1738337444508,-150.0,0.00016567,2]
[351102447,1738337444517,-568.0,0.00016567,2]
[351102448,1738337444526,-1865.0,0.00016567,2]
[351102449,1738337444535,-650.292,0.00016567,2]
[351102450,1738337444545,-329.42,0.00016567,2]
[351102451,1738337444554,-2021.0,0.00016567,2]
[351102452,1738337444563,-639.0,0.00016567,2]
[351102453,1738337444573,-150.0,0.00016567,2]
[351102454,1738337444582,-3908.0,0.00016567,2]
[351102455,1738337444592,-1005.0,0.00016567,2]
[351102456,1738337444601,-500.0,0.00016573,2]
[351102457,1738337444610,-4241.87175028,0.00016574,3]
[351102458,1738337444620,-569.02144036,0.00016575,2]
[351102459,1738337444629,-1243.0,0.00016575,2]
[351102460,1738337444637,-1025025.04957561,0.00016575,2]
[351102461,1738337444647,-500.0,0.00016575,2]
[351102462,1738337444655,-202.38720335,0.00016575,2]
[351102463,1738337444664,-500.0,0.00016575,2]
[351102464,1738337444674,-500.0,0.00016575,2]
[351102465,1738337444683,-500.0,0.00016575,2]
[351102466,1738337444693,-504.85564013,0.00016575,2]
[351102467,1738337444702,-500.0,0.00016575,2]
[351102468,1738337444712,-509.39280079,0.00016575,2]
[351102469,1738337444721,-500.0,0.00016575,2]
[351102470,1738337444730,-500.0,0.00016575,2]
[351102471,1738337444740,-208.82581945,0.00016575,2]
[351102472,1738337444749,-505.06548253,0.00016575,2]
[351102473,1738337444758,-500.0,0.00016575,2]
[351102474,1738337444767,-500.0,0.00016575,2]
[351102475,1738337444776,-500.0,0.00016575,2]
[351102476,1738337444785,-500.0,0.00016575,2]
[351102477,1738337444796,-502.72224881,0.00016575,2]
[351102478,1738337444805,-500.0,0.00016575,2]
[351102479,1738337444814,-500.0,0.00016575,2]
[351102480,1738337444823,-500.0,0.00016575,2]
[351102481,1738337444832,-500.0,0.00016575,2]
[351102482,1738337444841,-500.0,0.00016575,2]
[351102483,1738337444851,-543.11,0.00016575,2]
[351102484,1738337444860,-500.0,0.00016575,2]
[351102485,1738337444870,-300.0,0.00016575,2]
[351102486,1738337444880,-500.0,0.00016575,2]
[351102487,1738337444889,-500.0,0.00016575,2]
[351102488,1738337444898,-500.0,0.00016575,2]
[351102489,1738337444907,-400.13494223,0.00016575,2]
[351102490,1738337444916,-500.0,0.00016575,2]
[351102491,1738337444925,-497.31343465,0.00016575,2]
[351102492,1738337444935,-500.0,0.00016575,2]
[351102493,1738337444945,-500.0,0.00016575,2]
[351102494,1738337444956,-500.0,0.00016575,2]
[351102495,1738337444965,-552.43586243,0.00016575,2]
[351102496,1738337444975,-500.0,0.00016575,2]
[351102497,1738337444985,-517.55481756,0.00016575,2]
[351102498,1738337444995,-500.0,0.00016575,2]
[351102499,1738337445004,-500.0,0.00016575,2]
[351102500,1738337445013,-601.42080326,0.00016575,2]
[351102501,1738337445023,-527.50028309,0.00016575,2]
[351102502,1738337445032,-500.0,0.00016575,2]
[351102503,1738337445042,-500.0,0.00016575,2]
[351102504,1738337445052,-500.0,0.00016575,2]
[351102505,1738337445061,-500.0,0.00016575,2]
[351102506,1738337445070,-500.0,0.00016575,2]
[351102507,1738337445080,-730.474873,0.00016575,2]
[351102508,1738337445090,-500.0,0.00016575,2]
[351102509,1738337445099,-500.0,0.00016575,2]
[351102510,1738337445108,-500.0,0.00016575,2]
[351102511,1738337445118,-500.0,0.00016575,2]
[351102512,1738337445128,-500.0,0.00016575,2]
[351102513,1738337445137,-500.0,0.00016575,2]
[351102514,1738337445146,-164.18605661,0.00016575,2]
[351102515,1738337445155,-500.0,0.00016575,2]
[351102516,1738337445165,-828.682327,0.00016575,2]
[351102517,1738337445284,-787.0,0.00016575,2]
[351102518,1738337445295,-500.0,0.00016575,2]
[351102519,1738337445304,-863.13,0.00016575,2]
[351102520,1738337445314,-500.0,0.00016575,2]
[351102521,1738337445323,-500.0,0.00016575,2]
[351102522,1738337445333,-757.27,0.00016575,2]
[351102523,1738337445342,-500.0,0.00016575,2]
[351102524,1738337445353,-511.86,0.00016575,2]
[351102525,1738337445362,-732.53,0.00016575,2]
[351102526,1738337445374,-500.0,0.00016575,2]
[351102527,1738337445384,-500.0,0.00016575,2]
[351102528,1738337445393,-500.0,0.00016575,2]
[351102529,1738337445402,-500.0,0.00016575,2]
[351102530,1738337445412,-500.0,0.00016575,2]
[351102531,1738337445422,-500.0,0.00016575,2]
[351102532,1738337445431,-500.0,0.00016575,2]
[351102533,1738337445441,-784.14,0.00016575,2]
[351102534,1738337445450,-500.0,0.00016575,2]
[351102535,1738337445459,-500.0,0.00016575,2]
[351102536,1738337445469,-500.0,0.00016575,2]
[351102537,1738337445478,-500.0,0.00016575,2]
[351102538,1738337445487,-571.79,0.00016575,2]
[351102539,1738337445496,-500.0,0.00016575,2]
[351102540,1738337445506,-500.0,0.00016575,2]
[351102541,1738337445515,-500.0,0.00016575,2]
[351102542,1738337445525,-500.0,0.00016575,2]
[351102543,1738337445534,-500.0,0.00016575,2]
[351102544,1738337445543,-500.0,0.00016575,2]
[351102545,1738337445552,-755.44,0.00016575,2]
[351102546,1738337445562,-500.0,0.00016575,2]
[351102547,1738337445571,-500.0,0.00016575,2]
[351102548,1738337445580,-500.0,0.00016575,2]
[351102549,1738337445589,-500.0,0.00016575,2]
[351102550,1738337445598,-500.0,0.00016575,2]
[351102551,1738337445608,-500.0,0.00016575,2]
[351102552,1738337445618,-500.0,0.00016575,2]
[351102553,1738337445627,-830.49,0.00016575,2]
[351102554,1738337445636,-671.98,0.00016575,2]
[351102555,1738337445646,-531.75,0.00016575,2]
[351102556,1738337445655,-500.0,0.00016575,2]
[351102557,1738337445665,-940.54,0.00016575,2]
[351102558,1738337445674,-500.0,0.00016575,2]
[351102559,1738337445683,-1039.0,0.00016575,2]
[351102560,1738337445693,-500.0,0.00016575,2]
[351102561,1738337445702,-500.0,0.00016575,2]
[351102562,1738337445711,-500.0,0.00016575,2]
[351102563,1738337445721,-500.0,0.00016575,2]
[351102564,1738337445730,-500.0,0.00016575,2]
[351102565,1738337445739,-735.14,0.00016575,2]
[351102566,1738337445748,-500.0,0.00016575,2]
[351102567,1738337445757,-1680.84,0.00016575,2]
[351102568,1738337445766,-525.64,0.00016575,2]
[351102569,1738337445775,-808.19,0.00016575,2]
[351102570,1738337445784,-500.0,0.00016575,2]
[351102571,1738337445795,-724.25,0.00016575,2]
[351102572,1738337445804,-500.0,0.00016575,2]
[351102573,1738337445814,-500.0,0.00016575,2]
[351102574,1738337445823,-1269.36,0.00016575,2]
[351102575,1738337445833,-500.0,0.00016575,2]
[351102576,1738337445844,-517.66,0.00016575,2]
[351102577,1738337445853,-500.0,0.00016575,2]
[351102579,1738337445863,-1040.31,0.00016575,2]
[351102580,1738337445872,-500.0,0.00016575,2]
[351102582,1738337445883,-500.0,0.00016575,2]
[351102584,1738337445893,-573.1,0.00016575,2]
[351102585,1738337445902,-1175.11,0.00016575,2]
[351102586,1738337445912,-500.0,0.00016575,2]
[351102587,1738337445922,-500.0,0.00016575,2]
[351102588,1738337445931,-892.86,0.00016575,2]
[351102589,1738337445941,-500.0,0.00016575,2]
[351102590,1738337445954,-500.0,0.00016575,2]
[351102591,1738337445964,-831.38,0.00016575,2]
[351102592,1738337445973,-500.0,0.00016575,2]
[351102593,1738337445983,-500.0,0.00016575,2]
[351102594,1738337445992,-597.54,0.00016575,2]
[351102595,1738337446002,-744.02,0.00016575,2]
[351102596,1738337446011,-500.0,0.00016575,2]
[351102597,1738337446022,-500.0,0.00016575,2]
[351102598,1738337446031,-677.33,0.00016575,2]
[351102599,1738337446041,-500.0,0.00016575,2]
[351102600,1738337446052,-500.0,0.00016575,2]
[351102601,1738337446061,-500.0,0.00016575,2]
[351102602,1738337446071,-577.7,0.00016575,2]
[351102603,1738337446080,-500.0,0.00016575,2]
[351102604,1738337446089,-552.25,0.00016575,2]
[351102605,1738337446099,-1171.17,0.00016575,2]
[351102606,1738337446108,-500.0,0.00016575,2]
[351102607,1738337446121,-1201.98,0.00016575,2]
[351102608,1738337446136,-500.0,0.00016575,2]
[351102609,1738337446146,-962.2,0.00016575,2]
[351102610,1738337446156,-500.0,0.00016575,2]
[351102611,1738337446166,-521.96,0.00016575,2]
[351102612,1738337446176,-500.0,0.00016575,2]
[351102613,1738337446186,-624.35,0.00016575,2]
[351102614,1738337446196,-500.0,0.00016575,2]
[351102615,1738337446207,-547.88,0.00016575,2]
[351102616,1738337446218,-527.05,0.00016575,2]
[351102617,1738337446228,-500.0,0.00016575,2]
[351102618,1738337446238,-661.37,0.00016575,2]
[351102619,1738337446248,-896.13,0.00016575,2]
[351102620,1738337446257,-500.0,0.00016575,2]
[351102621,1738337446267,-500.0,0.00016575,2]
[351102622,1738337446277,-468.22478649,0.00016575,2]
[351102623,1738337446287,-627.37,0.00016575,2]
[351102624,1738337446303,-548.91,0.00016575,2]
[351102625,1738337446313,-500.0,0.00016575,2]
[351102626,1738337446323,-500.0,0.00016575,2]
[351102627,1738337446333,-500.0,0.00016575,2]
[351102628,1738337446343,-500.0,0.00016575,2]
[351102629,1738337446352,-500.0,0.00016575,2]
[351102630,1738337446362,-523.11,0.00016575,2]
[351102631,1738337446371,-525.44,0.00016575,2]
[351102632,1738337446380,-1191.37,0.00016575,2]
[351102633,1738337446389,-515.3,0.00016575,2]
[351102634,1738337446399,-500.0,0.00016575,2]
[351102635,1738337446409,-508.89,0.00016575,2]
[351102636,1738337446419,-834.86,0.00016575,2]
[351102637,1738337446428,-647.70046697,0.00016575,2]
[351102638,1738337446438,-500.0,0.00016575,2]
[351102639,1738337446448,-500.0,0.00016575,2]
[351102640,1738337446457,-710.41,0.00016575,2]
[351102641,1738337446467,-500.0,0.00016575,2]
[351102642,1738337446476,-987.06,0.00016575,2]
[351102643,1738337446487,-500.0,0.00016575,2]
[351102644,1738337446496,-500.0,0.00016575,2]
[351102645,1738337446506,-507.9,0.00016575,2]
[351102646,1738337446515,-583.45,0.00016575,2]
[351102647,1738337446524,-500.0,0.00016575,2]
[351102648,1738337446535,-575.66,0.00016575,2]
[351102649,1738337446547,-500.0,0.00016575,2]
[351102650,1738337446557,-500.0,0.00016575,2]
[351102651,1738337446566,-500.0,0.00016575,2]
[351102652,1738337446575,-747.35,0.00016575,2]
[351102653,1738337446584,-511.84,0.00016575,2]
[351102654,1738337446593,-500.0,0.00016575,2]
[351102655,1738337446602,-599.23,0.00016575,2]
[351102656,1738337446611,-500.0,0.00016575,2]
[351102657,1738337446620,-500.0,0.00016575,2]
[351102658,1738337446629,-500.0,0.00016575,2]
[351102659,1738337446638,-500.0,0.00016575,2]
[351102660,1738337446647,-500.0,0.00016575,2]
[351102661,1738337446656,-500.0,0.00016575,2]
[351102662,1738337446665,-500.0,0.00016575,2]
[351102663,1738337446675,-500.0,0.00016575,2]
[351102664,1738337446684,-879.7,0.00016575,2]
[351102665,1738337446693,-1018.64,0.00016575,2]
[351102666,1738337446703,-1075.66,0.00016575,2]
[351102667,1738337446712,-500.0,0.00016575,2]
[351102668,1738337446721,-584.66,0.00016575,2]
[351102669,1738337446730,-500.0,0.00016575,2]
[351102670,1738337446739,-509.29385745,0.00016575,2]
[351102671,1738337446748,-500.0,0.00016575,2]
[351102672,1738337446758,-500.0,0.00016575,2]
[351102673,1738337446767,-500.0,0.00016575,2]
[351102674,1738337446776,-500.0,0.00016575,2]
[351102675,1738337446785,-1110.29,0.00016575,2]
[351102676,1738337446797,-500.0,0.00016575,2]
[351102677,1738337446807,-786.96,0.00016575,2]
[351102678,1738337446816,-525.19,0.00016575,2]
[351102679,1738337446825,-500.0,0.00016575,2]
[351102680,1738337446835,-500.0,0.00016575,2]
[351102681,1738337446844,-849.92,0.00016575,2]
[351102682,1738337446853,-1206.52,0.00016575,2]
[351102683,1738337446862,-657.29,0.00016575,2]
[351102684,1738337446871,-500.0,0.00016575,2]
[351102685,1738337446881,-617.02,0.00016575,2]
[351102686,1738337446890,-835.77,0.00016575,2]
[351102687,1738337446899,-622.41,0.00016575,2]
[351102688,1738337446908,-500.0,0.00016575,2]
[351102689,1738337446918,-500.0,0.00016575,2]
[351102690,1738337446927,-500.0,0.00016575,2]
[351102691,1738337446936,-705.74,0.00016575,2]
[351102692,1738337446946,-500.0,0.00016575,2]
[351102693,1738337446957,-667.2,0.00016575,2]
[351102694,1738337446966,-769.6,0.00016575,2]
[351102695,1738337446975,-526.43,0.00016575,2]
[351102696,1738337446984,-8380.77,0.00016575,2]
[351102697,1738337446995,-500.0,0.00016575,2]
[351102698,1738337447004,-537.89,0.00016575,2]
[351102699,1738337447013,-892.43,0.00016575,2]
[351102700,1738337447022,-1039.9,0.00016575,2]
[351102701,1738337447036,-657.15,0.00016575,2]
[351102702,1738337447046,-845.25,0.00016575,2]
[351102703,1738337447057,-500.0,0.00016575,2]
[351102704,1738337447070,-500.0,0.00016575,2]
[351102705,1738337447080,-5003.51,0.00016575,2]
[351102706,1738337447089,-752.93,0.00016575,2]
[351102707,1738337447098,-500.0,0.00016575,2]
[351102708,1738337447108,-500.0,0.00016575,2]
[351102709,1738337447117,-889.66,0.00016575,2]
[351102710,1738337447127,-500.0,0.00016575,2]
[351102711,1738337447137,-500.0,0.00016575,2]
[351102712,1738337447148,-1655.9,0.00016575,2]
[351102713,1738337447157,-880.01,0.00016575,2]
[351102714,1738337447167,-500.0,0.00016575,2]
[351102715,1738337447177,-500.0,0.00016575,2]
[351102716,1738337447187,-2194.0,0.00016575,2]
[351102717,1738337447197,-1065.51,0.00016575,2]
[351102718,1738337447207,-500.0,0.00016575,2]
[351102719,1738337447217,-898.54,0.00016575,2]
[351102720,1738337447227,-500.0,0.00016575,2]
[351102721,1738337447236,-504.99,0.00016575,2]
[351102722,1738337447246,-1486.33,0.00016575,2]
[351102723,1738337447256,-1819.15,0.00016575,2]
[351102724,1738337447266,-500.0,0.00016575,2]
[351102725,1738337447276,-541.91,0.00016575,2]
[351102726,1738337447286,-500.0,0.00016575,2]
[351102727,1738337447297,-752.59,0.00016575,2]
[351102728,1738337447307,-500.0,0.00016575,2]
[351102729,1738337447316,-500.0,0.00016575,2]
[351102730,1738337447326,-571.42,0.00016575,2]
[351102731,1738337447335,-1136.27,0.00016575,2]
[351102732,1738337447345,-592.92,0.00016575,2]
[351102733,1738337447354,-1384.93,0.00016575,2]
[351102734,1738337447363,-1273.02,0.00016575,2]
[351102735,1738337447372,-596.46,0.00016575,2]
[351102736,1738337447381,-786.52,0.00016575,2]
[351102737,1738337447390,-3091.15,0.00016575,2]
[351102738,1738337447400,-962.97,0.00016575,2]
[351102739,1738337447409,-1170.72,0.00016575,2]
[351102740,1738337447419,-1591.77,0.00016575,2]
[351102741,1738337447428,-650.06,0.00016575,2]
[351102742,1738337447438,-2042.14,0.00016575,2]
[351102743,1738337447447,-562.34,0.00016575,2]
[351102744,1738337447457,-2348.41,0.00016575,2]
[351102745,1738337447467,-500.0,0.00016575,2]
[351102746,1738337447739,-500.0,0.00016575,2]
[351102747,1738337447756,-861.57,0.00016575,2]
[351102748,1738337447765,-500.0,0.00016575,2]
[351102749,1738337447775,-2815.31,0.00016575,2]
[351102750,1738337447784,-1470.62,0.00016575,2]
[351102751,1738337447795,-500.0,0.00016575,2]
[351102752,1738337447805,-500.0,0.00016575,2]
[351102753,1738337447814,-500.0,0.00016575,2]
[351102754,1738337447823,-1618.17,0.00016575,2]
[351102755,1738337447832,-602.1,0.00016575,2]
[351102756,1738337447842,-1129.3,0.00016575,2]
[351102757,1738337447851,-807.04,0.00016575,2]
[351102758,1738337447860,-512.58,0.00016575,2]
[351102759,1738337447869,-1736.2,0.00016575,2]
[351102760,1738337447878,-500.0,0.00016575,2]
[351102761,1738337447887,-743.89,0.00016575,2]
[351102762,1738337447897,-500.0,0.00016575,2]
[351102763,1738337447906,-600.71,0.00016575,2]
[351102764,1738337447915,-500.0,0.00016575,2]
[351102765,1738337447924,-1139.59,0.00016575,2]
[351102766,1738337447934,-550.58,0.00016575,2]
[351102767,1738337447945,-1335.88,0.00016575,2]
[351102768,1738337447957,-500.0,0.00016575,2]
[351102769,1738337447966,-1127.7,0.00016575,2]
[351102770,1738337447976,-1619.6,0.00016575,2]
[351102771,1738337447988,-928.49,0.00016575,2]
[351102772,1738337447997,-500.0,0.00016575,2]
[351102773,1738337448006,-1587.1,0.00016575,2]
[351102774,1738337448015,-500.0,0.00016575,2]
[351102775,1738337448024,-500.0,0.00016575,2]
[351102776,1738337448034,-516.36,0.00016575,2]
[351102777,1738337448045,-603.34,0.00016575,2]
[351102778,1738337448055,-890.75,0.00016575,2]
[351102779,1738337448065,-500.0,0.00016575,2]
[351102780,1738337448075,-5474.09,0.00016575,2]
[351102781,1738337448085,-564.44,0.00016575,2]
[351102782,1738337448095,-1030.81,0.00016575,2]
[351102783,1738337448105,-500.0,0.00016575,2]
[351102784,1738337448116,-5474.07,0.00016575,2]
[351102785,1738337448125,-2076.08,0.00016575,2]
[351102786,1738337448135,-1295.61,0.00016575,2]
[351102787,1738337448145,-812.44,0.00016575,2]
[351102788,1738337448155,-500.0,0.00016575,2]
[351102789,1738337448164,-2105.35,0.00016575,2]
[351102790,1738337448174,-1423.19,0.00016575,2]
[351102791,1738337448184,-1138.15,0.00016575,2]
[351102792,1738337448194,-500.0,0.00016575,2]
[351102793,1738337448204,-2846.62,0.00016575,2]
[351102794,1738337448213,-793.62,0.00016575,2]
[351102795,1738337448223,-1504.26,0.00016575,2]
[351102796,1738337448232,-500.0,0.00016575,2]
[351102797,1738337448241,-500.0,0.00016575,2]
[351102798,1738337448251,-1268.09,0.00016575,2]
[351102799,1738337448261,-598.83,0.00016575,2]
[351102800,1738337448271,-1451.75,0.00016575,2]
[351102801,1738337448280,-2285.34,0.00016575,2]
[351102802,1738337448290,-2654.62,0.00016575,2]
[351102803,1738337448300,-500.0,0.00016575,2]
[351102804,1738337448310,-2414.42,0.00016575,2]
[351102805,1738337448320,-3941.33,0.00016575,2]
[351102806,1738337448329,-506.84,0.00016575,2]
[351102807,1738337448339,-1454.44,0.00016575,2]
[351102808,1738337448350,-1020.91,0.00016575,2]
[351102809,1738337448359,-500.0,0.00016575,2]
[351102810,1738337448369,-2268.71,0.00016575,2]
[351102811,1738337448378,-776.94,0.00016575,2]
[351102812,1738337448388,-3588.73,0.00016575,2]
[351102813,1738337448398,-941.97,0.00016575,2]
[351102814,1738337448407,-500.0,0.00016575,2]
[351102815,1738337448418,-1929.94,0.00016575,2]
[351102816,1738337448427,-3163.78,0.00016575,2]
[351102817,1738337448436,-973.15,0.00016575,2]
[351102818,1738337448446,-717.94,0.00016575,2]
[351102819,1738337448456,-4082.67,0.00016575,2]
[351102820,1738337448466,-1717.79,0.00016575,2]
[351102821,1738337448476,-7980.75,0.00016575,2]
[351102822,1738337448486,-873.69,0.00016575,2]
[351102823,1738337448496,-632.26,0.00016575,2]
[351102824,1738337448506,-500.0,0.00016575,2]
[351102825,1738337448515,-1575.16,0.00016575,2]
[351102826,1738337448525,-526.65,0.00016575,2]
[351102827,1738337448534,-1884.85,0.00016575,2]
[351102828,1738337448545,-1765.61,0.00016575,2]
[351102829,1738337448555,-1070.07,0.00016575,2]
[351102830,1738337448564,-1299.7,0.00016575,2]
[351102831,1738337448573,-3248.07,0.00016575,2]
[351102832,1738337448583,-870.57,0.00016575,2]
[351102833,1738337448592,-500.0,0.00016575,2]
[351102834,1738337448602,-770.3,0.00016575,2]
[351102835,1738337448611,-2101.8,0.00016575,2]
[351102836,1738337448620,-500.0,0.00016575,2]
[351102837,1738337448630,-3515.16,0.00016575,2]
[351102838,1738337448639,-1063.05,0.00016575,2]
[351102839,1738337448649,-3050.95,0.00016575,2]
[351102840,1738337448659,-534.24,0.00016575,2]
[351102841,1738337448668,-1232.13,0.00016575,2]
[351102842,1738337448678,-500.0,0.00016575,2]
[351102843,1738337448687,-500.0,0.00016575,2]
[351102844,1738337448697,-791.83,0.00016575,2]
[351102845,1738337448707,-2862.65,0.00016575,2]
[351102846,1738337448717,-508.46381252,0.00016575,2]
[351102847,1738337448727,-1700.09,0.00016575,2]
[351102848,1738337448737,-4068.77,0.00016575,2]
[351102849,1738337448746,-500.0,0.00016575,2]
[351102850,1738337448756,-1579.74,0.00016575,2]
[351102851,1738337448766,-511.86737264,0.00016575,2]
[351102852,1738337448775,-1241.33,0.00016575,2]
[351102853,1738337448785,-638.85,0.00016575,2]
[351102854,1738337448796,-629.72,0.00016575,2]
[351102855,1738337448806,-500.0,0.00016575,2]
[351102856,1738337448816,-1016.29,0.00016575,2]
[351102857,1738337448825,-500.0,0.00016575,2]
[351102858,1738337448834,-1248.22,0.00016575,2]
[351102859,1738337448844,-500.0,0.00016575,2]
[351102860,1738337448853,-500.0,0.00016575,2]
[351102861,1738337448863,-500.0,0.00016575,2]
[351102862,1738337448872,-1647.94,0.00016575,2]
[351102863,1738337448882,-3049.39,0.00016575,2]
[351102864,1738337448892,-1373.52,0.00016575,2]
[351102865,1738337448901,-500.0,0.00016575,2]
[351102866,1738337448914,-500.0,0.00016575,2]
[351102867,1738337448928,-500.0,0.00016575,2]
[351102868,1738337448938,-500.0,0.00016575,2]
[351102869,1738337448949,-899.27,0.00016575,2]
[351102870,1738337448960,-1751.72,0.00016575,2]
[351102871,1738337448970,-2136.87,0.00016575,2]
[351102872,1738337448979,-1864.25,0.00016575,2]
[351102873,1738337448991,-517.07,0.00016575,2]
[351102874,1738337449001,-869.69,0.00016575,2]
[351102875,1738337449011,-3243.54588259,0.0001659,2]
[351102876,1738337449021,-7975.3696,0.00016612,2]
[351102877,1738337449031,-156.31,0.00016658,30]
[351102878,1738337449043,-257.2330255,0.0001666,2]
[351102879,1738337449053,-5000.0,0.00016684,4]
[351102880,1738337449063,-500.0,0.00016712,2]
[351102881,1738337449073,-469.22496724,0.00016712,2]
[351102882,1738337449083,-500.0,0.00016712,2]
[351102883,1738337449093,-500.0,0.00016712,2]
[351102884,1738337449103,-268.16628539,0.00016712,2]
[351102885,1738337449113,-517.24178438,0.00016712,2]
[351102886,1738337449123,-286.71667005,0.00016712,2]
[351102887,1738337449133,-500.0,0.00016712,2]
[351102888,1738337449143,-500.0,0.00016712,2]
[351102889,1738337449153,-500.0,0.00016712,2]
[351102890,1738337449163,-500.0,0.00016712,2]
[351102891,1738337449173,-500.0,0.00016712,2]
[351102892,1738337449183,-500.0,0.00016712,2]
[351102893,1738337449192,-279.27437065,0.00016712,2]
[351102894,1738337449202,-500.0,0.00016712,2]
[351102895,1738337449211,-500.0,0.00016712,2]
[351102896,1738337449221,-543.11,0.00016712,2]
[351102897,1738337449230,-500.0,0.00016712,2]
[351102898,1738337449239,-300.0,0.00016712,2]
[351102899,1738337449250,-500.0,0.00016712,2]
[351102900,1738337449260,-500.0,0.00016712,2]
[351102901,1738337449271,-500.0,0.00016712,2]
[351102902,1738337449282,-526.23067366,0.00016712,2]
[351102903,1738337449294,-500.0,0.00016712,2]
[351102904,1738337449304,-606.47128034,0.00016712,2]
[351102905,1738337449315,-500.0,0.00016712,2]
[351102906,1738337449325,-500.0,0.00016712,2]
[351102907,1738337449336,-500.0,0.00016712,2]
[351102908,1738337449346,-500.0,0.00016712,2]
[351102909,1738337449356,-500.0,0.00016712,2]
[351102910,1738337449367,-202.778,0.00016712,2]
[351102911,1738337449376,-500.0,0.00016712,2]